fUSD/lending_fUSD_20251123
["ID","MTS","AMOUNT","RATE_DAILY","PERIOD"]
[394674493,1763856632253,-150.0,0.000162,2]
[394674494,1763856632262,-631.466576,0.00016304,2]
[394674495,1763856632272,-462.546849,0.00016323,3]
[394674496,1763856632286,-536.453151,0.00016323,3]
[394674497,1763856632296,-1000.0,0.00016351,2]
[394674498,1763856632306,-454.2555863,0.00016454,2]
[394674499,1763856632317,-544.02,0.00016454,2]
[394674500,1763856632328,-601.7244137,0.00016454,2]
[394674501,1763856632338,-113.66962301,0.0001654,2]
[394674502,1763856632376,-531.69569396,0.0001654,2]
[394674503,1763856632387,-559.2491887,0.0001654,2]
[394674504,1763856632399,-1053.03409589,0.0001654,2]
[394674505,1763856632411,-642.14139844,0.0001654,2]
[394674506,1763856632422,-150.0,0.00016558,2]
[394674507,1763856632432,-151.99297196,0.00016563,2]
[394674508,1763856632444,-357.41173712,0.00016563,2]
[394674509,1763856632466,-690.59529092,0.00016563,2]
[394674510,1763856632476,-300.0,0.00016564,2]
[394674511,1763856632487,-2751.0,0.00016566,2]
[394674512,1763856632497,-150.0,0.0001657,2]
[394674513,1763856632507,-225.36630223,0.000168,2]
[394674514,1763856632516,-157.7878298,0.00016999,2]
[394674515,1763856632528,-7450.7754922,0.00016999,2]
[394674516,1763856632539,-3068.5572961,0.00016999,2]
[394674517,1763856632549,-792.7906955,0.00016999,2]
[394674518,1763856632560,-4097.2290195,0.00016999,2]
[394674519,1763856632573,-1418.3461991,0.00016999,2]
[394674520,1763856632583,-200.0,0.00016999,2]
[394674521,1763856632593,-1300.4478,0.00016999,2]
[394674522,1763856632602,-177.4322565,0.00016999,2]
[394674524,1763856632612,-3232.144779,0.00016999,2]
[394674526,1763856632621,-41506.31328255,0.00017,2]
[394674528,1763856632631,-250.0,0.00017,2]
[394674529,1763856632640,-2000.0,0.00017,2]
[394674530,1763856632650,-200.0,0.00017169,2]
[394674531,1763856632660,-748.6716,0.00017171,2]
[394674532,1763856632669,-504.5999,0.00017171,2]
[394674533,1763856632679,-379.8075669,0.00017171,2]
[394674534,1763856632688,-841.76307416,0.00017172,2]
[394674535,1763856632698,-3780.39536827,0.00017172,2]
[394674536,1763856632707,-10000.0,0.00017172,2]
[394674537,1763856632717,-5178.56,0.00017208,2]
[394674538,1763856632727,-617.93,0.00017261,2]
[394674539,1763856632736,-500.0,0.0001727,2]
[394674540,1763856632745,-500.0,0.0001727,2]
[394674541,1763856632755,-614.08849824,0.0001727,2]
[394674542,1763856632768,-500.0,0.0001727,2]
[394674543,1763856632777,-500.0,0.0001727,2]
[394674544,1763856632787,-660.03,0.0001727,2]
[394674545,1763856632796,-500.0,0.0001727,2]
[394674546,1763856632806,-500.0,0.0001727,2]
[394674547,1763856632815,-500.0,0.00017271,2]
[394674548,1763856632824,-500.0,0.00017271,2]
[394674549,1763856632833,-500.0,0.00017271,2]
[394674550,1763856632843,-577.43,0.00017271,2]
[394674551,1763856632853,-500.0,0.00017271,2]
[394674552,1763856632863,-768.18,0.00017271,2]
[394674553,1763856632872,-500.0,0.00017271,2]
[394674554,1763856632881,-500.0,0.00017271,2]
[394674555,1763856632891,-739.28,0.00017271,2]
[394674556,1763856632901,-500.0,0.00017271,2]
[394674557,1763856632911,-621.42,0.00017271,2]
[394674558,1763856632920,-500.0,0.00017271,2]
[394674559,1763856632930,-587.26,0.00017271,2]
[394674560,1763856632940,-500.0,0.00017271,2]
[394674561,1763856632949,-500.0,0.00017271,2]
[394674562,1763856632963,-556.9,0.00017271,2]
[394674563,1763856632973,-500.0,0.00017271,2]
[394674564,1763856632983,-500.0,0.00017271,2]
[394674565,1763856632992,-607.82,0.00017271,2]
[394674566,1763856633002,-500.0,0.00017271,2]
[394674567,1763856633011,-364.77740802,0.00017271,2]
[394674568,1763856633021,-500.0,0.00017271,2]
[394674569,1763856633030,-500.0,0.00017271,2]
[394674570,1763856633040,-500.0,0.00017271,2]
[394674571,1763856633050,-672.08,0.00017271,2]
[394674572,1763856633059,-500.0,0.00017271,2]
[394674573,1763856633069,-515.83,0.00017271,2]
[394674574,1763856633079,-500.0,0.00017271,2]
[394674575,1763856633089,-652.02,0.00017271,2]
[394674576,1763856633099,-382.39545745,0.00017271,2]
[394674577,1763856633110,-500.0,0.00017271,2]
[394674578,1763856633121,-668.63,0.00017271,2]
[394674579,1763856633132,-500.0,0.00017271,2]
[394674580,1763856633142,-500.0,0.00017271,2]
[394674581,1763856633151,-736.87,0.00017271,2]
[394674582,1763856633161,-775.23,0.00017271,2]
[394674583,1763856633170,-500.0,0.00017271,2]
[394674584,1763856633179,-500.0,0.00017271,2]
[394674585,1763856633189,-649.59,0.00017271,2]
[394674586,1763856633201,-978.15,0.00017271,2]
[394674587,1763856633213,-500.0,0.00017271,2]
[394674588,1763856633223,-500.0,0.00017271,2]
[394674589,1763856633233,-500.0,0.00017271,2]
[394674590,1763856633243,-500.0,0.00017271,2]
[394674591,1763856633253,-500.0,0.00017271,2]
[394674592,1763856633262,-151.98797098,0.00017271,2]
[394674593,1763856633271,-591.56,0.00017271,2]
[394674594,1763856633281,-500.0,0.00017271,2]
[394674595,1763856633290,-500.0,0.00017271,2]
[394674596,1763856633300,-519.19,0.00017271,2]
[394674597,1763856633309,-500.0,0.00017271,2]
[394674598,1763856633319,-500.0,0.00017271,2]
[394674599,1763856633329,-592.23,0.00017271,2]
[394674600,1763856633340,-500.0,0.00017271,2]
[394674601,1763856633350,-500.0,0.00017271,2]
[394674602,1763856633360,-500.0,0.00017271,2]
[394674603,1763856633370,-500.0,0.00017271,2]
[394674604,1763856633379,-500.0,0.00017271,2]
[394674605,1763856633389,-500.0,0.00017271,2]
[394674606,1763856633398,-500.0,0.00017271,2]
[394674607,1763856633409,-542.09,0.00017271,2]
[394674608,1763856633418,-645.73,0.00017271,2]
[394674609,1763856633428,-500.0,0.00017271,2]
[394674610,1763856633439,-500.0,0.00017271,2]
[394674611,1763856633449,-500.0,0.00017271,2]
[394674612,1763856633459,-500.0,0.00017271,2]
[394674613,1763856633469,-500.0,0.00017271,2]
[394674614,1763856633479,-1322.8,0.00017271,2]
[394674615,1763856633488,-500.0,0.00017271,2]
[394674616,1763856633498,-500.0,0.00017271,2]
[394674617,1763856633507,-313.84992983,0.00017271,2]
[394674618,1763856633518,-500.0,0.00017271,2]
[394674619,1763856633528,-500.0,0.00017271,2]
[394674620,1763856633538,-500.0,0.00017271,2]
[394674621,1763856633548,-500.0,0.00017271,2]
[394674622,1763856633557,-1000.0,0.00017271,2]
[394674623,1763856633567,-500.0,0.00017271,2]
[394674624,1763856633577,-538.09,0.00017271,2]
[394674625,1763856633586,-231.97137994,0.00017271,2]
[394674626,1763856633596,-651.39,0.00017271,2]
[394674627,1763856633606,-400.0,0.00017271,2]
[394674628,1763856633615,-508.97,0.00017271,2]
[394674629,1763856633625,-597.65,0.00017271,2]
[394674630,1763856633635,-500.0,0.00017271,2]
[394674631,1763856633644,-500.0,0.00017271,2]
[394674632,1763856633654,-575.11,0.00017271,2]
[394674633,1763856633663,-500.0,0.00017271,2]
[394674634,1763856633673,-500.0,0.00017271,2]
[394674635,1763856633682,-500.0,0.00017271,2]
[394674636,1763856633691,-500.0,0.00017271,2]
[394674637,1763856633700,-500.0,0.00017271,2]
[394674638,1763856633709,-500.0,0.00017271,2]
[394674639,1763856633718,-500.0,0.00017271,2]
[394674640,1763856633728,-500.0,0.00017271,2]
[394674641,1763856633738,-500.0,0.00017271,2]
[394674642,1763856633748,-567.66,0.00017271,2]
[394674643,1763856633758,-688.33,0.00017271,2]
[394674644,1763856633768,-524.66,0.00017271,2]
[394674645,1763856633778,-595.84,0.00017271,2]
[394674646,1763856633788,-150.91211179,0.00017271,2]
[394674647,1763856633798,-500.0,0.00017271,2]
[394674648,1763856633808,-500.0,0.00017271,2]
[394674649,1763856633817,-379.51321806,0.00017271,2]
[394674650,1763856633828,-625.09,0.00017271,2]
[394674651,1763856633838,-500.0,0.00017271,2]
[394674652,1763856633848,-500.0,0.00017271,2]
[394674653,1763856633857,-663.85,0.00017271,2]
[394674654,1763856633866,-500.0,0.00017271,2]
[394674655,1763856633876,-500.0,0.00017271,2]
[394674656,1763856633886,-575.04,0.00017271,2]
[394674657,1763856633896,-500.0,0.00017271,2]
[394674658,1763856633906,-500.0,0.00017271,2]
[394674659,1763856633915,-500.0,0.00017271,2]
[394674660,1763856633925,-609.91,0.00017271,2]
[394674661,1763856633934,-500.0,0.00017271,2]
[394674662,1763856633944,-500.0,0.00017271,2]
[394674663,1763856633954,-660.59,0.00017271,2]
[394674664,1763856633963,-500.0,0.00017271,2]
[394674665,1763856633973,-500.0,0.00017271,2]
[394674666,1763856633982,-500.0,0.00017271,2]
[394674667,1763856633992,-643.82,0.00017271,2]
[394674668,1763856634002,-500.0,0.00017271,2]
[394674669,1763856634012,-523.36,0.00017271,2]
[394674670,1763856634023,-500.0,0.00017271,2]
[394674671,1763856634034,-598.47,0.00017271,2]
[394674672,1763856634044,-500.0,0.00017271,2]
[394674673,1763856634054,-613.37,0.00017271,2]
[394674674,1763856634065,-957.28,0.00017271,2]
[394674675,1763856634074,-500.0,0.00017271,2]
[394674676,1763856634085,-726.29,0.00017271,2]
[394674677,1763856634095,-500.0,0.00017271,2]
[394674678,1763856634104,-500.0,0.00017271,2]
[394674679,1763856634115,-574.98,0.00017271,2]
[394674680,1763856634125,-500.0,0.00017271,2]
[394674681,1763856634134,-500.0,0.00017271,2]
[394674682,1763856634144,-500.0,0.00017271,2]
[394674683,1763856634155,-500.0,0.00017271,2]
[394674684,1763856634164,-651.81,0.00017271,2]
[394674685,1763856634174,-573.55,0.00017271,2]
[394674686,1763856634183,-500.0,0.00017271,2]
[394674687,1763856634193,-565.09,0.00017271,2]
[394674688,1763856634207,-500.0,0.00017271,2]
[394674689,1763856634216,-500.0,0.00017271,2]
[394674690,1763856634226,-557.38,0.00017271,2]
[394674691,1763856634235,-500.0,0.00017271,2]
[394674692,1763856634246,-500.0,0.00017271,2]
[394674693,1763856634256,-500.0,0.00017271,2]
[394674694,1763856634265,-500.0,0.00017271,2]
[394674695,1763856634275,-500.0,0.00017271,2]
[394674696,1763856634295,-573.88,0.00017271,2]
[394674697,1763856634307,-150.0,0.00017271,2]
[394674698,1763856634316,-150.0,0.00017271,2]
[394674699,1763856634329,-585.25,0.00017271,2]
[394674700,1763856634339,-500.0,0.00017271,2]
[394674701,1763856634348,-180.64385222,0.00017271,2]
[394674702,1763856634358,-500.0,0.00017271,2]
[394674703,1763856634367,-494.0,0.00017271,2]
[394674704,1763856634377,-500.0,0.00017271,2]
[394674705,1763856634386,-500.0,0.00017271,2]
[394674706,1763856634396,-500.0,0.00017271,2]
[394674707,1763856634406,-500.0,0.00017271,2]
[394674708,1763856634416,-823.89,0.00017271,2]
[394674709,1763856634427,-500.0,0.00017271,2]
[394674710,1763856634437,-500.0,0.00017271,2]
[394674711,1763856634447,-500.0,0.00017271,2]
[394674712,1763856634456,-535.93,0.00017271,2]
[394674713,1763856634466,-826.98,0.00017271,2]
[394674714,1763856634475,-500.0,0.00017271,2]
[394674715,1763856634485,-500.0,0.00017271,2]
[394674716,1763856634495,-500.0,0.00017271,2]
[394674717,1763856634731,-500.0,0.00017271,2]
[394674718,1763856634743,-500.0,0.00017271,2]
[394674719,1763856634752,-744.65,0.00017271,2]
[394674720,1763856634761,-500.0,0.00017271,2]
[394674721,1763856634770,-500.0,0.00017271,2]
[394674722,1763856634784,-569.12,0.00017271,2]
[394674723,1763856634794,-500.0,0.00017271,2]
[394674724,1763856634804,-500.0,0.00017271,2]
[394674725,1763856634814,-500.0,0.00017271,2]
[394674726,1763856634824,-682.93,0.00017271,2]
[394674727,1763856634833,-500.0,0.00017271,2]
[394674728,1763856634843,-525.68,0.00017271,2]
[394674729,1763856634853,-722.29,0.00017271,2]
[394674730,1763856634863,-500.0,0.00017271,2]
[394674731,1763856634872,-500.0,0.00017271,2]
[394674732,1763856634882,-988.48,0.00017271,2]
[394674733,1763856634892,-589.81712656,0.00017271,2]
[394674734,1763856634902,-500.0,0.00017271,2]
[394674735,1763856634911,-500.0,0.00017271,2]
[394674736,1763856634921,-500.0,0.00017271,2]
[394674737,1763856634931,-500.0,0.00017271,2]
[394674738,1763856634941,-500.0,0.00017271,2]
[394674739,1763856634951,-500.0,0.00017271,2]
[394674740,1763856634961,-500.0,0.00017271,2]
[394674741,1763856634971,-500.0,0.00017271,2]
[394674742,1763856634984,-417.0,0.00017271,2]
[394674743,1763856634995,-420.34414861,0.00017271,2]
[394674744,1763856635006,-417.0,0.00017271,2]
[394674745,1763856635016,-588.62,0.00017271,2]
[394674746,1763856635025,-500.0,0.00017271,2]
[394674747,1763856635035,-529.36,0.00017271,2]
[394674748,1763856635044,-300.0,0.00017271,2]
[394674749,1763856635054,-500.0,0.00017271,2]
[394674750,1763856635064,-500.0,0.00017271,2]
[394674751,1763856635073,-621.73,0.00017271,2]
[394674752,1763856635082,-500.0,0.00017271,2]
[394674753,1763856635100,-500.0,0.00017271,2]
[394674754,1763856635110,-500.0,0.00017271,2]
[394674755,1763856635120,-234.23231215,0.00017271,2]
[394674756,1763856635130,-373.40827756,0.00017271,2]
[394674757,1763856635140,-500.0,0.00017271,2]
[394674758,1763856635149,-500.0,0.00017271,2]
[394674759,1763856635158,-663.71,0.00017271,2]
[394674760,1763856635168,-500.0,0.00017271,2]
[394674761,1763856635177,-500.0,0.00017271,2]
[394674762,1763856635190,-500.0,0.00017271,2]
[394674763,1763856635202,-500.0,0.00017271,2]
[394674764,1763856635212,-486.00588086,0.00017271,2]
[394674765,1763856635222,-1433.78,0.00017271,2]
[394674766,1763856635231,-500.0,0.00017271,2]
[394674767,1763856635241,-536.26,0.00017271,2]
[394674768,1763856635252,-918.41,0.00017271,2]
[394674769,1763856635262,-500.0,0.00017271,2]
[394674770,1763856635272,-804.43,0.00017271,2]
[394674771,1763856635282,-500.0,0.00017271,2]
[394674772,1763856635291,-500.0,0.00017271,2]
[394674773,1763856635300,-500.0,0.00017271,2]
[394674774,1763856635311,-500.0,0.00017271,2]
[394674775,1763856635321,-500.0,0.00017271,2]
[394674776,1763856635330,-500.0,0.00017271,2]
[394674777,1763856635340,-500.0,0.00017271,2]
[394674778,1763856635350,-500.0,0.00017271,2]
[394674779,1763856635360,-1031.7,0.00017271,2]
[394674780,1763856635370,-861.28,0.00017271,2]
[394674781,1763856635384,-500.0,0.00017271,2]
[394674782,1763856635395,-500.0,0.00017271,2]
[394674783,1763856635407,-500.0,0.00017271,2]
[394674784,1763856635417,-500.0,0.00017271,2]
[394674785,1763856635426,-596.74896784,0.00017271,2]
[394674786,1763856635436,-500.0,0.00017271,2]
[394674787,1763856635446,-692.9,0.00017271,2]
[394674788,1763856635456,-500.0,0.00017271,2]
[394674789,1763856635466,-500.0,0.00017271,2]
[394674790,1763856635476,-536.68432205,0.00017271,2]
[394674791,1763856635485,-500.0,0.00017271,2]
[394674792,1763856635495,-500.0,0.00017271,2]
[394674793,1763856635504,-693.39,0.00017271,2]
[394674794,1763856635514,-500.0,0.00017271,2]
[394674795,1763856635525,-500.0,0.00017271,2]
[394674796,1763856635535,-500.0,0.00017271,2]
[394674797,1763856635546,-500.0,0.00017271,2]
[394674798,1763856635557,-500.0,0.00017271,2]
[394674799,1763856635567,-797.29,0.00017271,2]
[394674800,1763856635577,-500.0,0.00017271,2]
[394674801,1763856635586,-500.0,0.00017271,2]
[394674802,1763856635596,-500.0,0.00017271,2]
[394674803,1763856635606,-500.0,0.00017271,2]
[394674804,1763856635619,-500.0,0.00017271,2]
[394674805,1763856635628,-531.42,0.00017271,2]
[394674806,1763856635638,-518.06539362,0.00017271,2]
[394674807,1763856635647,-500.0,0.00017271,2]
[394674808,1763856635658,-500.0,0.00017271,2]
[394674809,1763856635667,-500.0,0.00017271,2]
[394674810,1763856635677,-360.75495329,0.00017271,2]
[394674811,1763856635687,-500.0,0.00017271,2]
[394674812,1763856635696,-500.0,0.00017271,2]
[394674813,1763856635706,-500.0,0.00017271,2]
[394674814,1763856635715,-500.6,0.00017271,2]
[394674815,1763856635724,-933.13,0.00017271,2]
[394674816,1763856635734,-1446.57,0.00017271,2]
[394674817,1763856635743,-710.87,0.00017271,2]
[394674818,1763856635755,-500.0,0.00017271,2]
[394674819,1763856635765,-500.0,0.00017271,2]
[394674820,1763856635775,-588.55,0.00017271,2]
[394674821,1763856635785,-500.0,0.00017271,2]
[394674822,1763856635794,-621.5853158,0.00017271,2]
[394674823,1763856635805,-500.0,0.00017271,2]
[394674824,1763856635814,-567.27,0.00017271,2]
[394674825,1763856635824,-835.03,0.00017271,2]
[394674826,1763856635834,-500.0,0.00017271,2]
[394674827,1763856635844,-500.0,0.00017271,2]
[394674828,1763856635854,-550.36,0.00017271,2]
[394674829,1763856635863,-500.0,0.00017271,2]
[394674830,1763856635872,-500.0,0.00017271,2]
[394674831,1763856635881,-922.57,0.00017271,2]
[394674832,1763856635891,-500.0,0.00017271,2]
[394674833,1763856635900,-593.8,0.00017271,2]
[394674834,1763856635909,-500.0,0.00017271,2]
[394674835,1763856635918,-500.0,0.00017271,2]
[394674836,1763856635927,-408.89425981,0.00017271,2]
[394674837,1763856635947,-91.10574019,0.00017271,2]
[394674838,1763856635956,-500.0,0.00017271,2]
[394674839,1763856635966,-500.0,0.00017271,2]
[394674840,1763856635975,-500.0,0.00017271,2]
[394674841,1763856635984,-500.0,0.00017271,2]
[394674842,1763856635993,-500.0,0.00017271,2]
[394674843,1763856636003,-500.0,0.00017271,2]
[394674844,1763856636012,-500.0,0.00017271,2]
[394674845,1763856636022,-500.0,0.00017271,2]
[394674846,1763856636031,-500.0,0.00017271,2]
[394674847,1763856636041,-500.0,0.00017271,2]
[394674848,1763856636050,-500.0,0.00017271,2]
[394674849,1763856636060,-500.0,0.00017271,2]
[394674850,1763856636070,-500.0,0.00017271,2]
[394674851,1763856636079,-500.0,0.00017271,2]
[394674852,1763856636090,-500.0,0.00017271,2]
[394674853,1763856636100,-500.0,0.00017271,2]
[394674854,1763856636109,-500.0,0.00017271,2]
[394674855,1763856636119,-738.5,0.00017271,2]
[394674856,1763856636136,-500.0,0.00017271,2]
[394674857,1763856636149,-413.73064685,0.00017271,2]
[394674858,1763856636160,-500.0,0.00017271,2]
[394674859,1763856636170,-500.0,0.00017271,2]
[394674860,1763856636180,-500.0,0.00017271,2]
[394674861,1763856636191,-1000.0,0.00017271,2]
[394674862,1763856636204,-500.0,0.00017271,2]
[394674863,1763856636214,-765.92,0.00017271,2]
[394674864,1763856636225,-526.20838456,0.00017271,2]
[394674865,1763856636236,-940.94,0.00017271,2]
[394674866,1763856636247,-500.0,0.00017271,2]
[394674867,1763856636256,-500.0,0.00017271,2]
[394674868,1763856636266,-608.04,0.00017271,2]
[394674869,1763856636276,-500.0,0.00017271,2]
[394674870,1763856636288,-500.0,0.00017271,2]
[394674871,1763856636298,-500.0,0.00017271,2]
[394674872,1763856636308,-500.0,0.00017271,2]
[394674873,1763856636317,-508.62,0.00017271,2]
[394674874,1763856636327,-500.0,0.00017271,2]
[394674875,1763856636337,-690.96,0.00017271,2]
[394674876,1763856636347,-500.0,0.00017271,2]
[394674877,1763856636356,-500.0,0.00017271,2]
[394674878,1763856636366,-596.22,0.00017271,2]
[394674879,1763856636376,-500.0,0.00017271,2]
[394674880,1763856636387,-500.0,0.00017271,2]
[394674881,1763856636397,-500.0,0.00017271,2]
[394674882,1763856636407,-500.0,0.00017271,2]
[394674883,1763856636417,-933.76,0.00017271,2]
[394674884,1763856636428,-1004.3,0.00017271,2]
[394674885,1763856636438,-500.0,0.00017271,2]
[394674886,1763856636448,-500.0,0.00017271,2]
[394674887,1763856636458,-464.2803205,0.00017271,2]
[394674888,1763856636468,-919.34,0.00017271,2]
[394674889,1763856636479,-730.27,0.00017271,2]
[394674890,1763856636489,-500.0,0.00017271,2]
[394674891,1763856636500,-500.0,0.00017271,2]
[394674892,1763856636510,-500.0,0.00017271,2]
[394674893,1763856636520,-500.0,0.00017271,2]
[394674894,1763856636530,-500.0,0.00017271,2]
[394674895,1763856636540,-2460.11,0.00017271,2]
[394674896,1763856636550,-500.0,0.00017271,2]
[394674897,1763856636559,-500.0,0.00017271,2]
[394674898,1763856636569,-150.0,0.00017271,2]
[394674899,1763856636578,-500.0,0.00017271,2]
[394674900,1763856636588,-500.0,0.00017271,2]
[394674901,1763856636598,-500.0,0.00017271,2]
[394674902,1763856636607,-500.0,0.00017271,2]
[394674903,1763856636620,-500.0,0.00017271,2]
[394674904,1763856636633,-500.0,0.00017271,2]
[394674905,1763856636642,-428.02352398,0.00017271,2]
[394674906,1763856636652,-266.16424406,0.00017271,2]
[394674907,1763856636663,-263.53142568,0.00017271,2]
[394674908,1763856636673,-645.49,0.00017272,2]
[394674909,1763856636682,-500.0,0.00017272,2]
[394674910,1763856636692,-500.0,0.00017272,2]
[394674911,1763856636702,-500.0,0.00017272,2]
[394674912,1763856636715,-500.0,0.00017272,2]
[394674913,1763856636725,-500.0,0.00017272,2]
[394674914,1763856636734,-500.0,0.00017272,2]
[394674915,1763856636744,-576.2,0.00017272,2]
[394674916,1763856636754,-701.16,0.00017272,2]
[394674917,1763856636763,-631.65,0.00017272,2]
[394674918,1763856636773,-500.0,0.00017272,2]
[394674919,1763856636782,-500.0,0.00017272,2]
[394674920,1763856636792,-500.0,0.00017272,2]
[394674921,1763856636803,-574.71210983,0.00017272,2]
[394674922,1763856636812,-500.0,0.00017272,2]
[394674923,1763856636823,-500.0,0.00017272,2]
[394674924,1763856636835,-504.99,0.00017272,2]
[394674925,1763856636846,-500.0,0.00017272,2]
[394674926,1763856636857,-500.0,0.00017272,2]
[394674927,1763856636867,-391.30660517,0.00017272,2]
[394674929,1763856638451,-441.0,0.0001727,2]
[394675098,1763856640336,-59.0,0.0001727,2]
[394675099,1763856640347,-500.0,0.0001727,2]
[394675101,1763856640356,-1270.62,0.00017271,2]
[394675103,1763856640365,-500.0,0.00017271,2]
[394675105,1763856640374,-500.0,0.00017271,2]
[394675107,1763856640384,-500.0,0.00017271,2]
[394675108,1763856640393,-108.69339483,0.00017272,2]
[394675110,1763856640403,-573.14,0.00017272,2]
[394675112,1763856640417,-500.0,0.00017272,2]
[394675114,1763856640427,-438.95928883,0.00017272,2]
[394675315,1763856646421,-500.0,0.0001727,2]
[394675316,1763856646430,-500.0,0.0001727,2]
[394675317,1763856646440,-654.47,0.00017271,2]
[394675318,1763856646450,-500.0,0.00017271,2]
[394675319,1763856646469,-571.59,0.00017271,2]
[394675320,1763856646480,-713.62,0.00017271,2]
[394675321,1763856646490,-1361.59,0.00017271,2]
[394675322,1763856646500,-500.0,0.00017271,2]
[394675323,1763856646511,-261.77123678,0.00017271,2]
[394675324,1763856646720,-500.0,0.0001727,2]
[394675325,1763856646730,-462.20876322,0.00017271,2]
[394675326,1763856646739,-219.18387135,0.00017271,2]
[394675337,1763856977223,1367.39,0.00014731,2]
[394675433,1763857163391,1328.0,0.00016,5]
[394675565,1763857803058,177.07,0.00019178,30]
[394675575,1763857831441,-166.66,0.00015729,2]
[394675576,1763857831451,-166.66,0.0001606,2]
[394675577,1763857831461,-150.0,0.00016166,2]
[394675578,1763857831471,-76.80000014,0.00016198,2]
[394675579,1763857831483,-223.19999986,0.00016198,2]
[394675580,1763857831492,-141.54926014,0.00016198,2]
[394675581,1763857831504,-834.786,0.00016198,2]
[394675582,1763857831516,-223.66473986,0.00016198,2]
[394675583,1763857831525,-198.83771455,0.00016198,2]
[394675584,1763857831562,-53.16228545,0.00016198,2]
[394675585,1763857831571,-393.83664826,0.00016198,2]
[394675586,1763857831582,-156.16335174,0.00016198,2]
[394675587,1763857831592,-179.18618326,0.00016199,2]
[394675588,1763857831604,-1015.72168011,0.00016199,2]
[394675589,1763857831616,-5.09213663,0.00016199,2]
[394675590,1763857831625,-411.11089735,0.00016199,2]
[394675591,1763857831636,-88.88910265,0.00016199,2]
[394675592,1763857831646,-500.0,0.00016199,2]
[394675593,1763857831655,-500.0,0.00016199,2]
[394675594,1763857831665,-329.72147912,0.00016199,2]
[394675595,1763857831675,-610.55442098,0.00016199,2]
[394675596,1763857831688,-270.00732992,0.00016199,2]
[394675597,1763857831698,-500.0,0.00016199,2]
[394675598,1763857831707,-500.0,0.00016199,2]
[394675600,1763857831719,-500.0,0.00016199,2]
[394675601,1763857831728,-500.0,0.00016199,2]
[394675602,1763857831738,-500.0,0.00016199,2]
[394675604,1763857831747,-395.39090067,0.00016199,2]
[394675607,1763857831758,-500.0,0.00016199,2]
[394675608,1763857831768,-500.0,0.00016199,2]
[394675611,1763857831778,-500.0,0.00016199,2]
[394675613,1763857831786,-500.0,0.00016199,2]
[394675615,1763857831796,-500.0,0.00016199,2]
[394675617,1763857831805,-500.0,0.00016199,2]
[394675618,1763857831814,-629.56105074,0.00016199,2]
[394675620,1763857831823,-150.0,0.000162,2]
[394675623,1763857831832,-150.0,0.000162,2]
[394675626,1763857831841,-150.0,0.000162,2]
[394675629,1763857831850,-150.0,0.000162,2]
[394675632,1763857831859,-165.78798586,0.000162,2]
[394675634,1763857831868,-150.0,0.000162,2]
[394675636,1763857831877,-9796.55106657,0.000162,5]